[Event "14. Deizisauer Herbstopen 2019"]
[Site "Deizisau"]
[Date "2019.10.26"]
[Round "3.5"]
[White "Gheng, Christian"]
[Black "Hoffmann, Achim Gunter"]
[Result "0-1"]
[ECO "B92"]
[WhiteElo "1868"]
[BlackElo "2125"]
[Annotator "NA"]
[PlyCount "68"]
[EventDate "2019.10.25"]
[EventType "swiss"]
[EventCountry "GER"]
[SourceTitle "playchess.com"]
[Source "ChessBase"]
[SourceQuality "1"]
[TimeControl "5400+30"]

1. e4 {[%emt 0:00:00]} c5 {[%emt 0:00:00]} 2. Nf3 {[%emt 0:00:00]} d6 {[%emt 0:00:00]} 3. d4 {[%emt 0:00:00]} cxd4 {[%emt 0:00:00]} 4. Nxd4 Nf6 {[%emt 0:00:00]} 5. Nc3 {[%emt 0:00:06]} a6 {[%emt 0:00:00]} 6. Be2 {[%emt 0:01:59]} e5 {[%emt 0:00:18]} 7. Nb3 {[%emt 0:00:55]} Be7 {[%emt 0:00:10]} 8. O-O {[%emt 0:00:14]} b5 {[%emt 0:00:28]} 9. Be3 {[%emt 0:03:03]} Nbd7 {[%emt 0:02:15]} 10. f3 {[%emt 0:03:41]} Bb7 {[%emt 0:00:36]} 11. a3 {[%emt 0:00:48]} Qc7 {[%emt 0:02:58]} 12. Qe1 {[%emt 0:07:27]} d5 {[%emt 0:05:47]} 13. exd5 {[%emt 0:00:09]} Nxd5 {[%emt 0:01:21]} 14. Nxd5 {[%emt 0:01:01]} Bxd5 {[%emt 0:00:57]} 15. Rc1 {[%emt 0:02:05]} O-O {[%emt 0:01:48]} 16. Qf2 {[%emt 0:10:00]} Rac8 {[%emt 0:22:47]} 17. c4 {[%emt 0:03:53]} bxc4 {[%emt 0:01:12]} 18. Nd2 {[%emt 0:00:09]} Qb7 {[%emt 0:10:17]} 19. Nxc4 {[%emt 0:00:45]} a5 {[%emt 0:03:58]} 20. Rfd1 {[%emt 0:06:32]} Be6 {[%emt 0:07:03]} 21. Kh1 {[%emt 0:26:17]} a4 {[%emt 0:05:14]} 22. Qg3 {[%emt 0:20:23]} Qa6 {[%emt 0:08:47]} 23. Bh6 {[%emt 0:07:04]} Bf6 {[%emt 0:01:09]} 24. Rd6 {[%emt 0:02:35]} Qb5 {[%emt 0:00:43]} 25. Rcd1 {[%emt 0:00:43]} Rxc4 {[%emt 0:01:27]} 26. Bxc4 {[%emt 0:01:57]} Qxc4 {[%emt 0:00:23]} 27. Rc1 {[%emt 0:00:13]} Qb5 {[%emt 0:01:26]} 28. h4 {[%emt 0:00:51]} Qxb2 {[%emt 0:01:43]} 29. Rcd1 {[%emt 0:00:49]} Qxa3 {[%emt 0:01:08]} 30. h5 {[%emt 0:00:32]} Kh8 {[%emt 0:00:38]} 31. Rxd7 {[%emt 0:00:47]} Bxd7 {[%emt 0:00:06]} 32. Rxd7 {[%emt 0:00:30]} gxh6 {[%emt 0:00:09]} 33. Qg4 {[%emt 0:00:22]} Qc1+ {[%emt 0:00:18]} 34. Kh2 {[%emt 0:00:06]} Qf4+ {[%emt 0:00:21]} 0-1

[Event "14. Deizisauer Herbstopen 2019"]
[Site "Deizisau"]
[Date "2019.10.26"]
[Round "3.6"]
[White "Marquardt, Alexander"]
[Black "Bueble, Joschua"]
[Result "1/2-1/2"]
[ECO "A14"]
[WhiteElo "2125"]
[BlackElo "1720"]
[Annotator "NA"]
[PlyCount "129"]
[EventDate "2019.10.25"]
[EventType "swiss"]
[EventCountry "GER"]
[SourceTitle "playchess.com"]
[Source "ChessBase"]
[SourceQuality "1"]
[TimeControl "5400+30"]

1. c4 {[%emt 0:02:13]} Nf6 {[%emt 0:00:00]} 2. g3 {[%emt 0:00:28]} e6 {[%emt 0:00:00]} 3. Bg2 {[%emt 0:00:16]} d5 {[%emt 0:00:15]} 4. Nf3 {[%emt 0:00:11]} Be7 {[%emt 0:01:00]} 5. O-O {[%emt 0:00:07]} O-O {[%emt 0:00:49]} 6. b3 {[%emt 0:01:06]} c5 {[%emt 0:01:45]} 7. Bb2 {[%emt 0:02:32]} d4 {[%emt 0:01:49]} 8. e3 {[%emt 0:05:27]} Nc6 {[%emt 0:02:14]} 9. exd4 {[%emt 0:00:11]} cxd4 {[%emt 0:02:33]} 10. Re1 {[%emt 0:00:34]} Re8 {[%emt 0:02:23]} 11. a3 {[%emt 0:07:44]} a5 {[%emt 0:01:50]} 12. d3 {[%emt 0:00:30]} Bf8 {[%emt 0:04:00]} 13. Ne5 {[%emt 0:00:36]} Nxe5 {[%emt 0:03:51]} 14. Rxe5 {[%emt 0:00:08]} Bd6 {[%emt 0:03:06]} 15. Rb5 {[%emt 0:04:44]} Rb8 {[%emt 0:07:50]} 16. Bxd4 {[%emt 0:07:27]} b6 {[%emt 0:06:44]} 17. Bxf6 {[%emt 0:29:18]} Qxf6 {[%emt 0:02:23]} 18. Nd2 {[%emt 0:00:10]} g6 {[%emt 0:11:27]} 19. Ne4 {[%emt 0:01:49]} Qe7 {[%emt 0:00:19]} 20. b4 {[%emt 0:14:28]} axb4 {[%emt 0:06:57]} 21. Nxd6 {[%emt 0:00:28]} Qxd6 {[%emt 0:00:06]} 22. Rxb4 {[%emt 0:00:18]} Rd8 {[%emt 0:01:08]} 23. Rb3 {[%emt 0:01:38]} e5 {[%emt 0:02:37]} 24. Qe2 {[%emt 0:03:01]} Qd4 {[%emt 0:04:48]} 25. Rab1 {[%emt 0:00:42]} Bf5 {[%emt 0:03:21]} 26. Be4 {[%emt 0:01:52]} Bxe4 {[%emt 0:04:01]} 27. Qxe4 {[%emt 0:00:06]} Qxe4 {[%emt 0:00:22]} 28. dxe4 {[%emt 0:00:05]} Rd4 {[%emt 0:00:07]} 29. c5 {[%emt 0:01:22]} Rxe4 {[%emt 0:01:11]} 30. cxb6 {[%emt 0:01:41]} Ra4 {[%emt 0:00:17]} 31. b7 {[%emt 0:00:09]} Ra7 {[%emt 0:00:11]} 32. a4 {[%emt 0:00:34]} Kg7 {[%emt 0:00:49]} 33. Rb4 {[%emt 0:00:04]} Kf6 {[%emt 0:00:09]} 34. Kf1 {[%emt 0:00:14]} Ke6 {[%emt 0:00:48]} 35. Ke2 {[%emt 0:00:06]} Kd6 {[%emt 0:00:20]} 36. Ke3 {[%emt 0:03:33]} f5 {[%emt 0:01:26]} 37. Kd3 {[%emt 0:02:03]} Kd5 {[%emt 0:01:03]} 38. Rb5+ {[%emt 0:00:35]} Kc6 {[%emt 0:00:46]} 39. Rxe5 {[%emt 0:01:51]} Rbxb7 {[%emt 0:00:19]} 40. Rxb7 {[%emt 0:01:04]} Rxb7 {[%emt 0:00:05]} 41. Re2 {[%emt 0:00:43]} Rb3+ {[%emt 0:01:25]} 42. Kc4 {[%emt 0:00:14]} Ra3 {[%emt 0:00:25]} 43. Kb4 {[%emt 0:00:07]} Ra1 {[%emt 0:00:26]} 44. Re6+ {[%emt 0:01:13]} Kd5 {[%emt 0:00:19]} 45. Re7 {[%emt 0:00:25]} Ra2 {[%emt 0:01:11]} 46. Rxh7 {[%emt 0:00:24]} Rxf2 {[%emt 0:00:11]} 47. a5 {[%emt 0:00:58]} Rb2+ {[%emt 0:01:35]} 48. Ka3 {[%emt 0:00:08]} Rb1 {[%emt 0:00:11]} 49. Rg7 {[%emt 0:01:19]} Kc4 {[%emt 0:00:41]} 50. Rc7+ {[%emt 0:01:01]} Kd5 {[%emt 0:00:22]} 51. Ka4 {[%emt 0:00:18]} g5 {[%emt 0:00:46]} 52. a6 {[%emt 0:00:53]} f4 {[%emt 0:00:13]} 53. gxf4 {[%emt 0:00:12]} gxf4 {[%emt 0:00:07]} 54. Rc3 {[%emt 0:00:59]} Ra1+ {[%emt 0:00:49]} 55. Kb5 {[%emt 0:00:26]} Ke4 {[%emt 0:02:35]} 56. Rc2 {[%emt 0:01:49]} f3 {[%emt 0:01:20]} 57. Kb6 {[%emt 0:01:59]} Rb1+ {[%emt 0:00:18]} 58. Kc7 {[%emt 0:01:40]} Ra1 {[%emt 0:00:15]} 59. Kb7 {[%emt 0:00:22]} Rb1+ {[%emt 0:00:13]} 60. Kc7 {[%emt 0:02:33]} Ra1 {[%emt 0:00:05]} 61. Kb6 {[%emt 0:00:49]} Rb1+ {[%emt 0:00:07]} 62. Kc5 {[%emt 0:00:20]} Ra1 {[%emt 0:00:18]} 63. Kb5 {[%emt 0:00:32]} Rb1+ {[%emt 0:00:20]} 64. Kc5 {[%emt 0:00:28]} Ra1 {[%emt 0:00:06]} 65. Kb6 {[%emt 0:00:33]} 1/2-1/2

[Event "14. Deizisauer Herbstopen 2019"]
[Site "Deizisau"]
[Date "2019.10.26"]
[Round "3.7"]
[White "Mock, Oskar"]
[Black "Gheng, Josef"]
[Result "0-1"]
[ECO "B23"]
[WhiteElo "1983"]
[BlackElo "2190"]
[Annotator "NA"]
[PlyCount "188"]
[EventDate "2019.10.25"]
[EventType "swiss"]
[EventCountry "GER"]
[SourceTitle "playchess.com"]
[Source "ChessBase"]
[SourceQuality "1"]
[TimeControl "5400+30"]

1. e4 {[%emt 0:00:00]} c5 {[%emt 0:00:08]} 2. Nc3 {[%emt 0:00:09]} Nc6 {[%emt 0:00:33]} 3. f4 {[%emt 0:02:11]} a6 {[%emt 0:02:08]} 4. Nf3 {[%emt 0:00:54]} b5 {[%emt 0:00:42]} 5. a4 {[%emt 0:02:40]} b4 {[%emt 0:00:14]} 6. Nd5 {[%emt 0:00:05]} e6 {[%emt 0:00:19]} 7. Ne3 {[%emt 0:04:30]} d5 {[%emt 0:00:20]} 8. exd5 exd5 {[%emt 0:00:16]} 9. d4 {[%emt 0:00:36]} Nf6 {[%emt 0:00:40]} 10. Be2 {[%emt 0:06:14]} Bd6 {[%emt 0:05:12]} 11. O-O {[%emt 0:02:35]} O-O {[%emt 0:00:09]} 12. Kh1 {[%emt 0:00:45]} Re8 {[%emt 0:00:13]} 13. c4 {[%emt 0:03:08]} bxc3 {[%emt 0:01:46]} 14. bxc3 {[%emt 0:00:16]} Rb8 {[%emt 0:02:04]} 15. Ne5 {[%emt 0:00:25]} Na5 {[%emt 0:00:55]} 16. Bh5 {[%emt 0:05:15]} Re7 {[%emt 0:00:47]} 17. Bf3 {[%emt 0:01:07]} cxd4 {[%emt 0:00:47]} 18. cxd4 {[%emt 0:00:32]} Bb4 {[%emt 0:07:06]} 19. Rb1 {[%emt 0:03:34]} Reb7 {[%emt 0:02:07]} 20. Qd3 {[%emt 0:07:13]} Bf8 {[%emt 0:01:13]} 21. Rxb7 {[%emt 0:03:41]} Bxb7 {[%emt 0:02:16]} 22. Bd1 {[%emt 0:11:18]} Qb6 {[%emt 0:04:50]} 23. Bc2 {[%emt 0:02:28]} Rd8 {[%emt 0:01:49]} 24. Bd2 {[%emt 0:03:56]} Ne4 {[%emt 0:00:35]} 25. Rb1 {[%emt 0:00:09]} Qxb1+ {[%emt 0:00:07]} 26. Bxb1 {[%emt 0:00:10]} Nf2+ {[%emt 0:00:09]} 27. Kg1 {[%emt 0:00:25]} Nxd3 {[%emt 0:00:13]} 28. Bxa5 {[%emt 0:00:16]} Re8 {[%emt 0:01:31]} 29. Bxd3 {[%emt 0:00:24]} f6 {[%emt 0:00:06]} 30. N5g4 {[%emt 0:02:04]} Bc6 {[%emt 0:04:29]} 31. Nf5 {[%emt 0:05:45]} Kf7 {[%emt 0:01:34]} 32. Bc7 {[%emt 0:07:56]} h5 {[%emt 0:01:00]} 33. Nh4 {[%emt 0:01:26]} Rc8 {[%emt 0:01:39]} 34. Ne5+ {[%emt 0:03:28]} fxe5 {[%emt 0:00:10]} 35. Bxe5 {[%emt 0:00:03]} Bxa4 {[%emt 0:00:24]} 36. Bxa6 {[%emt 0:00:24]} Rc1+ {[%emt 0:00:20]} 37. Kf2 {[%emt 0:00:16]} Rc2+ {[%emt 0:00:14]} 38. Kg3 {[%emt 0:00:25]} Be7 {[%emt 0:03:06]} 39. Nf3 {[%emt 0:03:01]} h4+ {[%emt 0:01:26]} 40. Nxh4 {[%emt 0:01:19]} Bxh4+ {[%emt 0:00:09]} 41. Kxh4 {[%emt 0:00:08]} Rxg2 {[%emt 0:00:05]} 42. f5 {[%emt 0:00:40]} Bc2 {[%emt 0:04:05]} 43. Bc8 {[%emt 0:00:45]} Be4 {[%emt 0:00:30]} 44. Be6+ {[%emt 0:00:34]} Ke7 {[%emt 0:00:07]} 45. Bf4 {[%emt 0:03:05]} Bf3 {[%emt 0:02:32]} 46. Bg5+ {[%emt 0:01:10]} Kf8 {[%emt 0:00:21]} 47. h3 {[%emt 0:00:15]} Ke8 {[%emt 0:02:25]} 48. Bc8 {[%emt 0:03:00]} Rc2 {[%emt 0:03:51]} 49. Be6 {[%emt 0:03:42]} Rg2 {[%emt 0:03:03]} 50. Bc8 {[%emt 0:01:03]} Kf7 {[%emt 0:01:00]} 51. Be6+ {[%emt 0:00:08]} Kf8 {[%emt 0:00:05]} 52. Bf4 {[%emt 0:00:35]} Rg1 {[%emt 0:01:12]} 53. Bh2 {[%emt 0:01:23]} g5+ {[%emt 0:01:06]} 54. fxg6 {[%emt 0:00:23]} Rxg6 {[%emt 0:00:08]} 55. Bg4 Bxg4 {[%emt 0:00:52]} 56. hxg4 {[%emt 0:00:22]} Rh6+ {[%emt 0:00:10]} 57. Kg3 {[%emt 0:00:06]} Kf7 {[%emt 0:00:07]} 58. Kg2 {[%emt 0:00:18]} Rh4 {[%emt 0:01:00]} 59. Kg3 {[%emt 0:00:15]} Rh8 {[%emt 0:00:40]} 60. Kg2 {[%emt 0:00:10]} Rc8 {[%emt 0:00:08]} 61. Bf4 {[%emt 0:00:42]} Kg6 {[%emt 0:00:30]} 62. Kf3 {[%emt 0:00:36]} Rf8 {[%emt 0:00:41]} 63. Kg3 {[%emt 0:00:22]} Re8 {[%emt 0:00:14]} 64. Kf3 {[%emt 0:00:49]} Re4 {[%emt 0:00:15]} 65. Be3 {[%emt 0:00:06]} Kf7 {[%emt 0:00:25]} 66. Bf2 {[%emt 0:00:31]} Kf6 {[%emt 0:00:15]} 67. Bg1 {[%emt 0:01:00]} Kg5 {[%emt 0:00:17]} 68. Be3+ {[%emt 0:00:16]} Kh4 {[%emt 0:00:08]} 69. Bf2+ {[%emt 0:00:22]} Kh3 {[%emt 0:00:07]} 70. g5 {[%emt 0:00:17]} Rg4 {[%emt 0:00:39]} 71. Be3 {[%emt 0:00:08]} Kh4 {[%emt 0:00:25]} 72. Kf2 {[%emt 0:02:05]} Kh5 {[%emt 0:00:24]} 73. Kf3 {[%emt 0:00:10]} Re4 {[%emt 0:00:10]} 74. Kf2 {[%emt 0:00:28]} Kg6 {[%emt 0:00:09]} 75. Ke2 {[%emt 0:00:24]} Kf5 {[%emt 0:00:12]} 76. Kf3 {[%emt 0:01:05]} Rg4 {[%emt 0:00:07]} 77. g6 {[%emt 0:05:48]} Rxg6 {[%emt 0:00:07]} 78. Bf4 {[%emt 0:00:02]} Rb6 {[%emt 0:00:16]} 79. Be5 {[%emt 0:00:05]} Rb3+ {[%emt 0:00:06]} 80. Ke2 {[%emt 0:00:35]} Ke4 {[%emt 0:00:07]} 81. Kd2 {[%emt 0:00:13]} Rb2+ {[%emt 0:00:46]} 82. Kc3 {[%emt 0:00:16]} Ra2 {[%emt 0:00:12]} 83. Bh8 Ra4 84. Kc2 {[%emt 0:01:40]} Ke3 {[%emt 0:00:37]} 85. Be5 {[%emt 0:00:38]} Rc4+ {[%emt 0:00:04]} 86. Kd1 {[%emt 0:00:28]} Kd3 {[%emt 0:00:07]} 87. Bf6 {[%emt 0:00:40]} Rc6 {[%emt 0:00:30]} 88. Be5 {[%emt 0:00:07]} Ke3 {[%emt 0:00:14]} 89. Bg7 {[%emt 0:00:28]} Kd3 {[%emt 0:01:07]} 90. Be5 {[%emt 0:00:22]} Ra6 {[%emt 0:00:28]} 91. Kc1 {[%emt 0:00:14]} Ra2 {[%emt 0:00:11]} 92. Bf6 {[%emt 0:00:26]} Rc2+ {[%emt 0:00:07]} 93. Kb1 {[%emt 0:00:09]} Kc3 {[%emt 0:00:11]} 94. Be5 {[%emt 0:00:58]} Kb3 {[%emt 0:00:11]} 0-1

[Event "14. Deizisauer Herbstopen 2019"]
[Site "Deizisau"]
[Date "2019.10.26"]
[Round "3.8"]
[White "Noppes, Marina"]
[Black "Doering, Stefan"]
[Result "0-1"]
[ECO "D02"]
[WhiteElo "1973"]
[BlackElo "2025"]
[Annotator "NA"]
[PlyCount "58"]
[EventDate "2019.10.25"]
[EventType "swiss"]
[EventCountry "GER"]
[SourceTitle "playchess.com"]
[Source "ChessBase"]
[SourceQuality "1"]
[TimeControl "5400+30"]

1. d4 {[%emt 0:00:00]} d5 {[%emt 0:00:00]} 2. Nf3 {[%emt 0:00:00]} Nf6 {[%emt 0:00:00]} 3. c4 {[%emt 0:00:00]} e6 {[%emt 0:00:07]} 4. g3 {[%emt 0:00:00]} dxc4 {[%emt 0:00:16]} 5. Qa4+ {[%emt 0:01:02]} Nbd7 {[%emt 0:02:16]} 6. Bg2 {[%emt 0:01:14]} a6 {[%emt 0:01:16]} 7. Qxc4 {[%emt 0:01:10]} b5 {[%emt 0:00:36]} 8. Qc2 {[%emt 0:08:56]} Bb7 {[%emt 0:00:23]} 9. Bf4 {[%emt 0:01:13]} Rc8 {[%emt 0:05:44]} 10. Nbd2 {[%emt 0:04:06]} c5 {[%emt 0:00:33]} 11. dxc5 {[%emt 0:01:15]} Bxc5 {[%emt 0:00:34]} 12. Qd1 {[%emt 0:00:37]} e5 {[%emt 0:03:29]} 13. Be3 {[%emt 0:07:48]} Bxe3 {[%emt 0:00:36]} 14. fxe3 {[%emt 0:00:01]} Qb6 {[%emt 0:00:46]} 15. Nf1 {[%emt 0:10:19]} O-O {[%emt 0:01:23]} 16. h3 {[%emt 0:00:31]} Rfd8 {[%emt 0:02:20]} 17. Kf2 {[%emt 0:01:00]} Nc5 {[%emt 0:02:19]} 18. Qe1 {[%emt 0:00:28]} Nce4+ {[%emt 0:07:31]} 19. Kg1 {[%emt 0:00:04]} Qc5 {[%emt 0:00:06]} 20. Kh2 {[%emt 0:03:35]} Qc2 {[%emt 0:04:57]} 21. Nxe5 {[%emt 0:21:02]} Qxb2 {[%emt 0:00:26]} 22. Nd3 {[%emt 0:12:21]} Qc2 {[%emt 0:03:40]} 23. Nb4 {[%emt 0:05:46]} Qa4 {[%emt 0:01:41]} 24. a3 {[%emt 0:04:23]} Qb3 {[%emt 0:04:46]} 25. Nd3 {[%emt 0:10:52]} Rc2 {[%emt 0:06:37]} 26. Rg1 {[%emt 0:00:51]} Qe6 {[%emt 0:03:51]} 27. Nb4 {[%emt 0:01:01]} Ng4+ {[%emt 0:01:24]} 28. hxg4 {[%emt 0:00:39]} Qh6+ {[%emt 0:00:02]} 29. Bh3 {[%emt 0:00:26]} Ng5 {[%emt 0:00:05]} 0-1

[Event "14. Deizisauer Herbstopen 2019"]
[Site "Deizisau"]
[Date "2019.10.26"]
[Round "3.9"]
[White "Coellen, Florian"]
[Black "Hottes, Dieter"]
[Result "1-0"]
[ECO "E61"]
[WhiteElo "1873"]
[BlackElo "2037"]
[Annotator "NA"]
[PlyCount "83"]
[EventDate "2019.10.25"]
[EventType "swiss"]
[EventCountry "GER"]
[SourceTitle "playchess.com"]
[Source "ChessBase"]
[SourceQuality "1"]
[TimeControl "5400+30"]

1. d4 {[%emt 0:00:00]} Nf6 {[%emt 0:01:19]} 2. c4 {[%emt 0:00:00]} g6 {[%emt 0:00:03]} 3. Nc3 {[%emt 0:00:54]} Bg7 {[%emt 0:00:02]} 4. h4 {[%emt 0:00:30]} d6 {[%emt 0:00:23]} 5. e4 {[%emt 0:00:57]} e5 {[%emt 0:01:26]} 6. d5 {[%emt 0:00:09]} c5 {[%emt 0:00:50]} 7. Be2 {[%emt 0:00:14]} h6 {[%emt 0:02:26]} 8. Be3 {[%emt 0:00:46]} Na6 {[%emt 0:00:28]} 9. g4 {[%emt 0:00:38]} Bd7 {[%emt 0:04:32]} 10. g5 {[%emt 0:07:52]} Ng8 {[%emt 0:03:22]} 11. gxh6 {[%emt 0:15:29]} Bxh6 {[%emt 0:01:03]} 12. Bxh6 {[%emt 0:01:28]} Rxh6 {[%emt 0:01:25]} 13. h5 {[%emt 0:00:18]} Qf6 {[%emt 0:10:59]} 14. Qd2 {[%emt 0:07:34]} O-O-O {[%emt 0:04:31]} 15. Qe3 {[%emt 0:02:25]} gxh5 {[%emt 0:03:43]} 16. Rxh5 {[%emt 0:01:54]} Rxh5 {[%emt 0:00:20]} 17. Bxh5 {[%emt 0:00:07]} Ne7 {[%emt 0:01:05]} 18. O-O-O {[%emt 0:00:33]} Rh8 {[%emt 0:00:47]} 19. Be2 {[%emt 0:00:51]} Ng6 {[%emt 0:00:41]} 20. Nb5 {[%emt 0:07:20]} Kb8 {[%emt 0:02:15]} 21. Kb1 {[%emt 0:06:42]} Nc7 {[%emt 0:01:52]} 22. Nc3 {[%emt 0:02:27]} Rh2 {[%emt 0:09:50]} 23. Nf3 {[%emt 0:03:03]} Rh3 {[%emt 0:01:20]} 24. Rg1 {[%emt 0:00:40]} a6 {[%emt 0:00:56]} 25. Rg3 {[%emt 0:01:11]} Rh1+ 26. Kc2 {[%emt 0:00:25]} Rh8 {[%emt 0:08:46]} 27. Qg5 {[%emt 0:03:08]} Qxg5 {[%emt 0:04:06]} 28. Nxg5 {[%emt 0:00:23]} Rh2 {[%emt 0:00:16]} 29. Nxf7 {[%emt 0:03:24]} Nf4 {[%emt 0:00:39]} 30. Nxd6 {[%emt 0:03:13]} Rxf2 {[%emt 0:01:01]} 31. Kd2 {[%emt 0:00:43]} b5 {[%emt 0:06:03]} 32. Ke3 {[%emt 0:03:45]} Rh2 {[%emt 0:00:43]} 33. Rg8+ {[%emt 0:01:48]} Ka7 {[%emt 0:00:12]} 34. Rg7 {[%emt 0:00:18]} b4 {[%emt 0:00:43]} 35. Rxd7 {[%emt 0:02:33]} bxc3 {[%emt 0:00:33]} 36. Rxc7+ {[%emt 0:01:32]} Ka8 37. bxc3 {[%emt 0:01:06]} Rxe2+ {[%emt 0:02:01]} 38. Kf3 Rxa2 {[%emt 0:01:20]} 39. Rxc5 {[%emt 0:00:46]} Rh2 40. Nf7 Rh3+ {[%emt 0:04:38]} 41. Kg4 {[%emt 0:03:33]} Rxc3 {[%emt 0:00:27]} 42. Nxe5 1-0

[Event "14. Deizisauer Herbstopen 2019"]
[Site "Deizisau"]
[Date "2019.10.27"]
[Round "4.1"]
[White "Hoffmann, Achim Gunter"]
[Black "Dgebuadze, Alexandre"]
[Result "0-1"]
[ECO "C01"]
[WhiteElo "2125"]
[BlackElo "2472"]
[Annotator "ChessBase"]
[PlyCount "76"]
[EventDate "2019.10.25"]
[EventType "swiss"]
[EventCountry "GER"]
[SourceTitle "playchess.com"]
[Source "ChessBase"]
[SourceQuality "1"]
[TimeControl "5400+30"]

1. e4 {[%emt 0:00:00]} e6 {[%emt 0:00:13]} 2. d4 {[%emt 0:00:00]} d5 {[%emt 0:00:08]} 3. exd5 {[%emt 0:00:02]} exd5 {[%emt 0:00:07]} 4. Bd3 {[%emt 0:00:32]} Nf6 {[%emt 0:00:25]} 5. Nf3 {[%emt 0:01:03]} c5 {[%emt 0:00:12]} 6. dxc5 {[%emt 0:08:24]} Bxc5 {[%emt 0:00:59]} 7. O-O {[%emt 0:02:12]} O-O {[%emt 0:00:11]} 8. c3 {[%emt 0:03:29]} Nc6 {[%emt 0:04:27]} 9. Bg5 {[%emt 0:10:23]} h6 {[%emt 0:00:39]} 10. Bh4 {[%emt 0:00:26]} g5 {[%emt 0:06:49]} 11. Bg3 {[%emt 0:03:23]} Ne4 {[%emt 0:00:09]} 12. b4 {[%emt 0:15:26]} Bb6 {[%emt 0:06:20]} 13. b5 {[%emt 0:01:08]} Ne7 {[%emt 0:03:01]} 14. Be5 {[%emt 0:01:58]} Ng6 {[%emt 0:05:57]} 15. Bd4 {[%emt 0:04:16]} Bg4 {[%emt 0:03:02]} 16. Qc2 {[%emt 0:08:52]} Bxf3 {[%emt 0:03:57]} 17. gxf3 {[%emt 0:00:41]} Bxd4 {[%emt 0:00:07]} 18. fxe4 {[%emt 0:01:02]} Be5 {[%emt 0:09:07]} 19. exd5 {[%emt 0:03:56]} Nf4 {[%emt 0:00:59]} 20. Be4 {[%emt 0:01:21]} Rc8 {[%emt 0:05:41]} 21. a4 {[%emt 0:00:32]} Qf6 {[%emt 0:00:37]} 22. Ra3 {[%emt 0:00:30]} Bd6 {[%emt 0:02:46]} 23. c4 {[%emt 0:06:33]} Bxa3 {[%emt 0:04:15]} 24. Nxa3 {[%emt 0:00:30]} Rfe8 {[%emt 0:00:21]} 25. c5 {[%emt 0:02:51]} Qd4 {[%emt 0:00:24]} 26. Bh7+ {[%emt 0:14:09]} Kg7 {[%emt 0:00:57]} 27. c6 {[%emt 0:01:56]} Qxd5 {[%emt 0:01:35]} 28. f3 {[%emt 0:00:13]} bxc6 {[%emt 0:01:55]} 29. Be4 {[%emt 0:01:10]} Qd4+ {[%emt 0:00:36]} 30. Kh1 {[%emt 0:00:02]} cxb5 {[%emt 0:02:06]} 31. Nxb5 {[%emt 0:00:09]} Qe5 {[%emt 0:01:10]} 32. Qf2 {[%emt 0:02:13]} a6 {[%emt 0:05:24]} 33. Nd4 {[%emt 0:00:23]} Qf6 {[%emt 0:01:38]} 34. Nf5+ {[%emt 0:02:15]} Kh8 {[%emt 0:00:19]} 35. Rd1 {[%emt 0:03:42]} Red8 {[%emt 0:01:03]} 36. Qf1 {[%emt 0:00:03]} Rxd1 {[%emt 0:00:24]} 37. Qxd1 {[%emt 0:00:02]} Qb2 {[%emt 0:01:03]} 38. Bc2 {[%emt 0:01:26]} Rxc2 {[%emt 0:00:11]} 0-1

[Event "14. Deizisauer Herbstopen 2019"]
[Site "Deizisau"]
[Date "2019.10.27"]
[Round "4.2"]
[White "Krassowizkij, Jaroslaw"]
[Black "Frolik, Erhard"]
[Result "1-0"]
[ECO "A22"]
[WhiteElo "2436"]
[BlackElo "2317"]
[Annotator "NA"]
[PlyCount "83"]
[EventDate "2019.10.25"]
[EventType "swiss"]
[EventCountry "GER"]
[SourceTitle "playchess.com"]
[Source "ChessBase"]
[SourceQuality "1"]
[TimeControl "5400+30"]

{[%evp 8,56,13,-14,-6,-15,0,-13,0,0,-4,0,-10,-12,0,-6,0,3,32767,0,37,27,60,32767,32767,32767,32767,59,72,45,57,45,72,42,35,32767,54,32767,55,55,32767,42,76,62,77,60,49,50,32767,70,170]} 1. c4 {[%emt 0:00:00]} e5 {[%emt 0:00:00]} 2. g3 {[%emt 0:00:04]} Nf6 {[%emt 0:00:09]} 3. Nc3 {[%emt 0:00:20]} Bb4 {[%emt 0:00:43]} 4. Bg2 {[%emt 0:00:31]} Bxc3 {[%emt 0:04:53]} 5. dxc3 {[%emt 0:00:53]} d6 {[%emt 0:00:50]} (5... O-O 6. Nf3 d6 7. O-O h6 8. Nd2 Nc6 9. e4 Be6 10. Qe2 Qd7 11. Re1 Bh3 12. Nf1 Bxg2 13. Kxg2 {1-0 (58) Harika,D (2514)-Bologan,V (2654) Almaty 2016}) 6. e4 {[%emt 0:01:27] A22: English Opening: 1...e5 2 Nc3 Nf6} Nc6 {[%emt 0:00:56]} 7. h3 {[%emt 0:02:00]} Be6 {[%emt 0:01:03]} 8. b3 {[%emt 0:00:12]} a5 $146 {[%emt 0:00:42]} ({Predecessor:} 8... O-O 9. Ne2 a5 10. a4 Nd7 11. g4 Nc5 12. Ng3 Ra6 13. Be3 {1-0 (37) Skomorohov,G (2180)-Ruchkin,I (2053) Lipetsk 2007}) 9. a4 {[%emt 0:00:26]} Nd7 {[%emt 0:01:39]} 10. Ne2 {[%emt 0:04:13]} Nc5 {[%emt 0:01:14]} 11. Be3 {[%emt 0:01:59]} b6 {[%emt 0:06:21]} 12. f4 {[%emt 0:07:56]} f6 {[%emt 0:04:37]} 13. Nd4 {[%emt 0:18:56]} Bd7 {[%emt 0:07:58]} 14. Nb5 {[%emt 0:05:15]} Be6 {[%emt 0:02:36]} 15. Qc2 {[%emt 0:05:54]} Na7 {[%emt 0:09:27]} 16. Na3 {[%emt 0:02:11]} Bd7 {[%emt 0:03:56]} 17. f5 {[%emt 0:02:21]} Nc6 {[%emt 0:02:50]} 18. g4 {[%emt 0:01:36]} Qe7 {[%emt 0:02:27]} 19. h4 {[%emt 0:03:32]} h6 {[%emt 0:00:29]} 20. O-O-O {[%emt 0:00:53]} O-O-O {[%emt 0:01:52]} 21. Kb2 {[%emt 0:01:27]} Rdg8 {[%emt 0:02:14]} 22. Bf3 {[%emt 0:03:28]} Nd8 {[%emt 0:02:28]} 23. Nb5 {[%emt 0:03:33]} Kb8 {[%emt 0:02:58]} 24. Rdg1 {[%emt 0:08:43]} Nf7 {[%emt 0:00:52]} 25. Ka2 {[%emt 0:01:27]} g6 {[%emt 0:03:10]} 26. b4 {[%emt 0:02:57]} Nb7 {[%emt 0:00:25]} 27. Rb1 {[%emt 0:00:14]} Bc6 {[%emt 0:04:49]} 28. Qf2 {[%emt 0:01:55]} g5 $18 {[%emt 0:03:50]} (28... gxf5 $14 29. gxf5 (29. exf5 Bxf3 30. Qxf3 e4 $11) 29... Nfd8) 29. bxa5 {[%emt 0:01:29]} bxa5 {[%emt 0:03:48]} 30. Rb3 {[%emt 0:07:12]} Nfd8 {[%emt 0:00:15]} 31. h5 {[%emt 0:00:04]} Be8 {[%emt 0:08:42]} 32. Qb2 {[%emt 0:03:51]} c5 {[%emt 0:08:01]} 33. Nxd6 {[%emt 0:01:22]} Qxd6 {[%emt 0:05:51]} 34. Rd1 {[%emt 0:00:03]} Qc6 {[%emt 0:01:09]} 35. Rxd8+ {[%emt 0:00:23]} Kc7 {[%emt 0:00:18]} 36. Rd5 {[%emt 0:01:37]} Qxa4+ {[%emt 0:00:51]} 37. Kb1 {[%emt 0:01:16]} Bc6 {[%emt 0:00:22]} 38. Bd1 {[%emt 0:03:28]} Rb8 {[%emt 0:00:55]} 39. Rxb7+ {[%emt 0:01:11]} Rxb7 {[%emt 0:01:30]} 40. Bxa4 {[%emt 0:00:05]} Rxb2+ {[%emt 0:00:13]} 41. Kxb2 {[%emt 0:00:03]} Bxa4 {[%emt 0:02:26]} 42. Bxc5 {[%emt 0:01:10]} 1-0